Cogmind - Beta 15 @@@ ROGUE MODE // 2025.07.04 @ 14:22:16 Player: beans Result: Destroyed by 6B-U6P(R) with Subdweller Beam Cannon Performance ------------- Evolutions (0) 0 Regions Visited (2) 400 Robots Destroyed (5) 25 Value Destroyed (201) 201 Prototype IDs (0) 0 Alien Tech Used (0) 0 Bonus (0) 0 TOTAL SCORE: 626 Bonus ------- None Cogmind --------- Core Integrity 0/250 Matter 153/300 Energy 100/100 System Corruption 0% Temperature Cool (9) Movement Core (50) Location -10/Subcaves Parts ------- > --- POWER (1) -------- (None) > --- PROPULSION (2) --- (None) > --- UTILITY (2) ------ (None) > --- WEAPON (2) ------- Light Assault Rifle > --- INVENTORY (5) ---- Mining Laser Scrap Shield Fragment (48) Peak State ------------ > --- POWER ------------ Light Ion Engine > --- PROPULSION ------- Wheel Compact Wheel > --- UTILITY ---------- Scrap Shield > --- WEAPON ----------- Assault Rifle Flamer > --- INVENTORY -------- Light Assault Rifle [Rating: 10] Favorites ----------- Power Light Ion Engine Engine Light Ion Engine Propulsion Compact Wheel Treads Light Treads Wheel Compact Wheel Utility Scrap Shield Protection Scrap Shield Weapon Assault Rifle Ballistic Gun Assault Rifle Special Weapon Flamer Build | -11 -10 -10 ------- Run | Yrd Mat Sub Slots Evolved . | . . . Power . | . . . Propulsion . | . . . Utility . | . . . Weapon . | . . . Parts Attached 10 | 7 . 3 Power 1 | 1 . . Engine 1 | 1 . . Core . | . . . Reactor . | . . . Propulsion 4 | 4 . . Treads 2 | 2 . . Leg . | . . . Wheel 2 | 2 . . Hover . | . . . Flight . | . . . Utility 1 | . . 1 Device . | . . . Storage . | . . . Processor . | . . . Hackware . | . . . Protection 1 | . . 1 Artifact . | . . . Weapon 4 | 2 . 2 Energy Gun . | . . . Energy Cannon . | . . . Ballistic Gun 2 | 2 . . Ballistic Cannon . | . . . Launcher . | . . . Special Weapon 2 | . . 2 Impact Weapon . | . . . Slashing Weapon . | . . . Piercing Weapon . | . . . Special Melee Weapon . | . . . Unidentified Prototypes . | . . . Parts Lost 6 | . . 6 Power 1 | . . 1 Propulsion 2 | . . 2 Utility 1 | . . 1 Weapon 2 | . . 2 Highest Loss Streak 6 | . . 6 To Critical Strikes . | . . . Average Backups . | . . . Power . | . . . Propulsion . | . . . Utility . | . . . Weapon . | . . . Tool/Special . | . . . Unused Backups . | . . . Power . | . . . Propulsion . | . . . Utility . | . . . Weapon . | . . . Tool/Special . | . . . Average Slot Usage (%) 80 | . 71 81 Engine 13 | . 14 13 Wheel 27 | . 28 26 Protection 11 | . . 12 Ballistic Gun 24 | . 28 24 Special Weapon 3 | . . 3 Peak Build Rating 10 | 5 5 10 Average Rating 8 | 3 5 8 On Entrance 3 | . 5 5 Naked Turns . | . . . Heaviest Build 25 | 6 6 25 Greatest Support 40 | 40 26 26 Greatest Overweight (x) 7 | . . 7 Average Overweight (x) . | . . . Largest Inventory Capacity 5 | 5 5 5 Average Capacity 5 | 5 5 5 Most Carried 5 | 5 . 3 Average Carried . | 1 . . Final Capacity 5 | 5 5 5 Final Carried 2 | . . 2 Class Distribution -------------------- 100% | Mutant Dominant Class ---------------- Mutant | -10/Materials Mutant | -10/Subcaves Resources | -11 -10 -10 ----------- Run | Yrd Mat Sub Matter Collected 412 | 192 . 220 Remotely . | . . . Salvage Created 185 | . . 185 Parts 12 | . . 12 Haulers Intercepted . | . . . Recyclers Shooed . | . . . Parts Field Recycled . | . . . Retrieved Matter . | . . . Parts Self-Destructed 14 | . . 14 Prevented . | . . . Kills | -11 -10 -10 ------- Run | Yrd Mat Sub Combat Hostiles Destroyed 5 | . . 5 Guns 3 | . . 3 Cannons 1 | . . 1 Classes Destroyed 2 | . . 2 Grunt 2 | . . 2 Subdweller 3 | . . 3 Best Kill Streak 1 | . . 1 Combat Bots Only 1 | . . 1 Max Kills in Single Turn 1 | . . 1 Gunslinging . | . . . Exploded . | . . . Melee . | . . . Uniques/NPCs Destroyed . | . . . Combat | -11 -10 -10 -------- Run | Yrd Mat Sub Hostile Shots Fired 102 | . . 102 Missed 46 | . . 46 Hits 56 | . . 56 Projectile 56 | . . 56 Critical Strikes 2 | . . 2 Damage Taken 933 | . . 933 Core 272 | . . 272 Absorbed by Shields . | . . . Core Remaining (%) 100 | 100 . . Volleys Fired 81 | . 1 80 Largest 2 | . 2 2 Hottest 120 | . 40 120 Shots Fired 141 | . 2 139 Gun 107 | . 2 105 Cannon . | . . . Launcher . | . . . Special 34 | . . 34 Kinetic 107 | . 2 105 Thermal 34 | . . 34 Explosive . | . . . Electromagnetic . | . . . Robot Hit Streak 25 | . . 25 Robot Miss Streak 3 | . . 3 Penetration Max . | . . . Secondary Targets 1 | . . 1 Max Gunslinging Chain 1 | . . 1 Shots Hit Robots 44 | . . 44 Core Hits 14 | . . 14 Critical Kills . | . . . Critical Parts Destroyed . | . . . Critical Strikes 2 | . . 2 Burn 2 | . . 2 Melee Attacks . | . . . Impact . | . . . Slashing . | . . . Piercing . | . . . Sneak Attacks . | . . . Combat Hostiles . | . . . Follow-up Attacks . | . . . Damage Inflicted 472 | . 13 459 Guns 339 | . 13 326 Cannons . | . . . Explosions . | . . . Melee . | . . . Ramming . | . . . Kinetic 339 | . 13 326 Thermal 133 | . . 133 Explosive . | . . . Electromagnetic . | . . . Impact . | . . . Slashing . | . . . Piercing . | . . . Highest Corruption . | . . . Average Corruption . | . . . Corruption Purged . | . . . Corruption Blocked . | . . . Overload Shots . | . . . Overflow Damage . | . . . Projectiles . | . . . Explosions . | . . . Melee . | . . . Knockbacks . | . . . Impact . | . . . Kinetic . | . . . Secondary . | . . . Self-Inflicted Damage . | . . . Shots . | . . . Rammed . | . . . Targets Rammed . | . . . Kicked . | . . . Crushed . | . . . Highest Temperature 23 | . . 23 Average Temperature 12 | . . 12 Received Heat Transfer 366 | . . 366 Siege Activations . | . . . Martial Activations . | . . . Shielding Activations . | . . . Robots Disrupted . | . . . Combat Hostiles . | . . . Robots Corrupted . | . . . Combat Hostiles . | . . . Parts Fried . | . . . Impact Corruptions . | . . . Robots Melted 1 | . . 1 Combat Hostiles 1 | . . 1 Parts Melted 2 | . . 2 Heat Transferred 1280 | . . 1280 Parts Sabotaged . | . . . Parts Stolen . | . . . Parts Stripped . | . . . Power Chain Reactions . | . . . Alert | -11 -10 -10 ------- Run | Yrd Mat Sub Maximum Alert Level . | . . . Low Security (%) 100 | 100 100 . Level 1 . | . . . Level 2 . | . . . Level 3 . | . . . Level 4 . | . . . Level 5 . | . . . High Security . | . . . Max Security . | . . . Peak Influence . | . . . Initial . | . . . Average . | . . . Influence Increases 140 | . . 140 Destroy 0b10 Robot/C 40 | . . 40 Destroy Leader 10 | . . 10 Lose Combat Pursuer 90 | . . 90 Influence Decreases 130 | . . 130 Time Decay 70 | . . 70 Lost Part 60 | . . 60 Squads Dispatched . | . . . Investigation . | . . . Extermination . | . . . Reinforcement . | . . . Assault . | . . . Garrison . | . . . Intercept . | . . . Searches Triggered . | . . . Construction Impeded . | . . . Haulers Reinforced . | . . . Active Scanning Responses . | . . . Cargo Convoy Interrupts . | . . . Stealth | -11 -10 -10 --------- Run | Yrd Mat Sub Distress Signals . | . . . Communications Jammed . | . . . Distress Signals . | . . . Times Spotted 11 | . . 11 Peak Tracking Total 2 | . . 2 Tactical Retreats 2 | . . 2 Traps | -11 -10 -10 ------- Run | Yrd Mat Sub Traps Triggered . | . . . Indirectly . | . . . Trap Hack Attempts . | . . . Triggered . | . . . Disarmed . | . . . Reprogrammed . | . . . Reused . | . . . Traps Extracted . | . . . Installed . | . . . Triggered . | . . . Machines | -11 -10 -10 ---------- Run | Yrd Mat Sub Machines Disabled . | . . . Max in Single Turn . | . . . Machines Repaired . | . . . Machines Dismantled . | . . . Machines Sabotaged . | . . . Overloaded Fab Kills . | . . . Hacking | -11 -10 -10 --------- Run | Yrd Mat Sub Machines Accessed . | . . . Terminals . | . . . Fabricators . | . . . Repair Stations . | . . . Recycling Units . | . . . Scanalyzers . | . . . Garrison Access . | . . . Total Hacks . | . . . Successful . | . . . Failed . | . . . Catastrophic . | . . . Database Lockouts . | . . . Manual . | . . . Terminals . | . . . Fabricators . | . . . Repair Stations . | . . . Recycling Units . | . . . Scanalyzers . | . . . Garrison Access . | . . . Terminal Hacks . | . . . Fabricator Hacks . | . . . Repair Station Hacks . | . . . Recycling Unit Hacks . | . . . Scanalyzer . | . . . Garrison Access Hacks . | . . . Unauthorized Hacks . | . . . Terminals . | . . . Fabricators . | . . . Repair Stations . | . . . Recycling Units . | . . . Scanalyzers . | . . . Garrison Access . | . . . Data Cores Recovered . | . . . Used . | . . . Hacking Detections . | . . . Full Trace Events . | . . . Feedback Events . | . . . Feedback Blocked . | . . . Robot Schematics Acquired . | . . . Robots Built . | . . . Authchips . | . . . Time . | . . . Total Robot Build Rating . | . . . Part Schematics Acquired . | . . . Parts Built . | . . . Authchips . | . . . Time . | . . . Total Part Build Rating . | . . . Parts Repaired . | . . . Time . | . . . Parts Recycled . | . . . Recycled Matter . | . . . Retrieved Matter . | . . . Retrieved Components . | . . . Parts Scanalyzed . | . . . Part Schematics Acquired . | . . . Parts Damaged . | . . . Bothacking | -11 -10 -10 ------------ Run | Yrd Mat Sub Used RIF Installer . | . . . Robots Hacked . | . . . Non-combat . | . . . Combat . | . . . Robot Hacks Applied . | . . . Relay Couplers Released . | . . . Fabnet Peak Effective % . | . . . Robots Rewired . | . . . Allies Hacked . | . . . Hacks Repelled . | . . . Allies | -11 -10 -10 -------- Run | Yrd Mat Sub Total Allies . | . . . Largest Group . | . . . Highest-Rated Group . | . . . Highest-Rated Ally . | . . . Total Orders . | . . . Ally Attacks . | . . . Total Damage . | . . . Kills . | . . . Allies Corrupted . | . . . Allies Melted . | . . . Intel | -11 -10 -10 ------- Run | Yrd Mat Sub Active Infowar (turns) . | . . . Robot Analysis Total . | . . . Derelict Logs Recovered 1 | . . 1 Drone Launches . | . . . Drone Recoveries . | . . . Exploration | -11 -10 -10 ------------- Run | Yrd Mat Sub Turns Passed 1868 | 46 148 1674 Spaces Moved 784 | 36 21 727 Core 29 | 15 . 14 Treads 3 | 3 . . Legs . | . . . Wheels 752 | 18 21 713 Hover . | . . . Flight . | . . . Fastest Speed 50 | 50 90 50 Average Speed 89 | 79 90 90 Slowest Speed 400 | 160 90 400 Overloaded Moves . | . . . Propulsion Burnouts . | . . . Robots Hopped . | . . . Potential Cave-ins . | . . . Cave-ins Triggered . | . . . Exploration Rate (%) 11 | 3 6 24 Regions Visited 2 Branch Regions 1 Pre-discovered Areas . | . . . Known Exits Taken . | . . . Unknown Exits Taken 2 | 1 1 . Scrap Searched . | . . . Spaces Dug . | . . . Terrain Destroyed . | . . . Melee . | . . . Projectile . | . . . AOE . | . . . Terrain Rammed . | . . . Walls Destroyed . | . . . Machines Disabled . | . . . Actions | -11 -10 -10 --------- Run | Yrd Mat Sub Total 1774 | 52 148 1574 Wait 875 | . 127 748 Move 782 | 35 20 727 Hop . | . . . Pick Up 12 | 7 . 5 Fast Attach . | . . . Attach 8 | 5 . 3 Detach 1 | . . 1 Swap 8 | 3 . 5 Drop 3 | 2 . 1 Fire 81 | . 1 80 Melee . | . . . Ram . | . . . Kick . | . . . Crush . | . . . Escape Stasis . | . . . Rewire . | . . . Trap . | . . . Miscellaneous 4 | . . 4 Route ------- -11/Scrapyard -10/Materials -10/Subcaves (discovered 2 exits: [*Mat] / [*Rec]) History --------- Turn | Location | Event 4 | -11/Scrapyard | Discovered new exit (range 16) 47 | -11/Scrapyard | Entered Materials 178 | -10/Materials | Discovered new exit (range 6) 195 | -10/Materials | Entered Subcaves 196 | -10/Subcaves | Approached by a straggling Scientist 200 | -10/Subcaves | Learned Materials emergency access door positions 318 | -10/Subcaves | Build established: Mutant 461 | -10/Subcaves | Discovered new exit (range 6) 1766 | -10/Subcaves | Discovered new exit (range 16) 1834 | -10/Subcaves | Core integrity fell below 50% 1860 | -10/Subcaves | Core integrity fell below 20% 1869 | -10/Subcaves | Destroyed by 6B-U6P(R) with Subdweller Beam Cannon Last Messages --------------- EXIT=FOUND Acquired 30 matter. Acquired Mining Laser. FX-HH6(c): "I think it's somewhere east of here" Scrap Shield Fragment affixed to Scrap Shield (+45). Subatomizers dissect the Tech Extrapolator. Tech Extrapolator violently self-destructs. Wheel destroyed. Flamer destroyed. Com. Wheel destroyed. Scrap Shield destroyed. Lgt. Ion Engine destroyed. X0-R8N(R) destroyed. Switching to secondary target: 6B-U6P(R). Acquired 47 matter. Acquired Scrap Shield Fragment. Assault Rifle destroyed. 6B-U6P(R) affixes Scrap Shield Fragment to Scrap Shield. Map ----- +----------------------------------------------------+ | ?????????????????????????????????????? ? ??????? | | ????????????????????????????????????? ????? | | ????????????????????????????????????? ????? | | ????????????????????????????????????? ???? | | ????????????????????????????????????? ???? | | ????????????????????????????????????? ??? | | ???????????????????????????????###### ???? | | ??????????????????????????????## #????? | | ??????????????????????????????# ## ?? | | ??????????????????????????????# ??? | | ?????????????????????????????## ??????? | | ???????????????????????"?????# ! #?????????? | | ?????????????????????#" ????# % #??????????? | | ?????????????????????#" ###% #??????????? | | ?????????????????????#"" % % ##?????????? | | ????????????????????#< % ##????????? | | ????????????????????##"" #????????? | | ?????????????????????#" ##### ##???????? | | ?????????????????????#" ?????##### ###?????? | | ?????????????????????#""" ??????????# ##????? | | ?????????????????????####??????????## ##???? | | ???????????????????????????????????# #???? | | ???????????????????????????????????# #???? | | ???????????????????????####????##### ### #???? | | ??????????????????????##R;###### ##?# ##???? | | ??????????????????????#!!@ [ ##??# ##????? | | ??????????????????????####& ##??## ##????? | | ?????????????????????????## ## ##???# #??### | | ??????????????????????????##### ####?#### ##?## | | ?????????????????????????????# #?### ## #### | | ?????????????????????????????## #?# | | ?????????????????????????????# #### ### | | ?????????????????????????????## ### ""##?### | | ?????????????????????????????" #?#" "###?## # | | ?????????????????????????? ##?#""" #### # | | ???????????????????????# =%##"##### ## | | ???????????????????????# ??### # # ##? | | ???????????????????????## ?????## ""###### #?? | | ????????????????????????#???????#""" " #### #?? | | ????????????????????????????????#"""" " #?? | | ????????????????????????????????##""## "" ""### | | ????????????????????????????????# " ### ""### # | | ????????????????????????????????# #?# ##?# ## | | ???????????????????????????????? ### "#??## # | | ???????????????????????????????"###### #??##" ## | | ???????????????????????????????????# #### #? | | ???????????????????????????????????# ""## #? | | ???????????????????????????????????## #### | | ????????????????????????????????????# # #### | | ????????????????????????????????????#### ## | +----------------------------------------------------+ Best States ------------- Heat Dissipation 25 Energy Generation 10 Energy Capacity 125 Matter Stores 235 Matter Capacity 300 Sight Range 16 Terrain Scan Density 10 Armor Coverage 800 Evasion (%) 50 Recoil Reduction 2 Item Schematics ----------------- None Robot Schematics ------------------ None Fabricated ------------ Nothing Repaired ---------- Nothing Alien Tech Used ----------------- None Achievements -------------- None Challenges ------------ None Game ------ Seed TowerElectrostormShield Manual? 0 Play Time 00:08:37 Cumulative 37.0 hours Start 2025.07.04 @ 14:14:25 End 2025.07.04 @ 14:22:16 Sessions 1 Manual Loads 0 Difficulty Rogue Special Mode None Game No. 175 Rogue 175 Adventurer 0 Explorer 0 Win Type - Total 0 Types 0/0/0/0/0/0/0/0/0/0 Lore% 22 Gallery% 23 Achievement% 19 Wizard Run 0 Options --------- Layout 2 ASCII 0 Keyboard 0 Movement Mouse Keybinds 0 Fullscreen 1 Font 24/Smallcaps Map View 50x44 Zoom Use 0% Tactical HUD 0 Map Filters NONE Filters NONE Steam 1 RUN: 9bc1723d-25e8-43db-861a-d55252c1b1b4